Cogmind - Beta 13 @@@ ROGUE MODE // 2024.07.05 @ 01:32:03 Player: visilii Result: Destroyed by G-47 Trooper with Particle Gun Performance ------------- Evolutions (0) 0 Regions Visited (1) 200 Robots Destroyed (13) 65 Value Destroyed (368) 368 Prototype IDs (0) 0 Alien Tech Used (0) 0 Bonus (0) 0 TOTAL SCORE: 633 Bonus ------- None Cogmind --------- Core Integrity 0/250 Matter 300/300 Energy 160/160 System Corruption 0% Temperature Warm (153) Movement Walking (190) Ox1 Location -10/Materials Parts ------- > --- POWER (1) -------- Light Nuclear Core > --- PROPULSION (2) --- Aluminum Leg Aluminum Leg > --- UTILITY (2) ------ Large Storage Unit > --- WEAPON (2) ------- Particle Gun Maul > --- INVENTORY (15) --- Wheel Wheel Hover Unit Beam Cannon Light Assault Rifle Grenade Launcher Peak State ------------ > --- POWER ------------ Light Nuclear Core > --- PROPULSION ------- Aluminum Leg Aluminum Leg > --- UTILITY ---------- Large Storage Unit > --- WEAPON ----------- Particle Gun Maul > --- INVENTORY -------- Wheel Wheel Hover Unit Beam Cannon Light Assault Rifle Grenade Launcher [Rating: 10] Favorites ----------- Power Light Nuclear Core Engine Ion Engine Power Core Light Nuclear Core Propulsion Aluminum Leg Leg Aluminum Leg Hover Unit Hover Unit Utility Large Storage Unit Storage Large Storage Unit Weapon Assault Rifle Energy Gun Particle Gun Energy Cannon Beam Cannon Ballistic Gun Assault Rifle Launcher Grenade Launcher Impact Weapon Maul Build | -11 -10 ------- Run | Yrd Mat Slots Evolved . | . . Power . | . . Propulsion . | . . Utility . | . . Weapon . | . . Parts Attached 20 | 6 14 Power 4 | 2 2 Engine 3 | 2 1 Core 1 | . 1 Reactor . | . . Propulsion 7 | 2 5 Treads . | . . Leg 6 | 2 4 Wheel . | . . Hover 1 | . 1 Flight . | . . Utility 1 | . 1 Device . | . . Storage 1 | . 1 Processor . | . . Hackware . | . . Protection . | . . Artifact . | . . Weapon 8 | 2 6 Energy Gun 1 | . 1 Energy Cannon 2 | . 2 Ballistic Gun 3 | 2 1 Ballistic Cannon . | . . Launcher 1 | . 1 Special Weapon . | . . Impact Weapon 1 | . 1 Slashing Weapon . | . . Piercing Weapon . | . . Special Melee Weapon . | . . Unidentified Prototypes . | . . Parts Lost 1 | . 1 Power 1 | . 1 Propulsion . | . . Utility . | . . Weapon . | . . Highest Loss Streak 1 | . 1 To Critical Strikes . | . . Average Slot Usage (%) 81 | . 81 Engine 6 | . 6 Core 6 | . 6 Leg 26 | . 26 Storage 13 | . 13 Energy Gun 6 | . 6 Energy Cannon 6 | . 6 Ballistic Gun 6 | . 6 Launcher 4 | . 4 Impact Weapon 3 | . 3 Naked Turns . | . . Heaviest Build 31 | 8 31 Greatest Support 20 | 20 20 Greatest Overweight (x) 2 | . 2 Average Overweight (x) . | . 1 Largest Inventory Capacity 15 | 5 15 Average Capacity 13 | 5 14 Most Carried 9 | 5 9 Average Carried 5 | 3 5 Final Capacity 15 | 5 15 Final Carried 6 | 4 6 Class Distribution -------------------- 57% | Mutant 42% | Scavenger-Mutant Dominant Class ---------------- Mutant | -10/Materials Resources | -11 -10 ----------- Run | Yrd Mat Matter Collected 525 | 306 219 Remotely . | . . Salvage Created 475 | 67 408 Parts 32 | 4 28 Haulers Intercepted . | . . Recyclers Shooed . | . . Parts Field Recycled . | . . Retrieved Matter . | . . Parts Self-Destructed . | . . Prevented . | . . Kills | -11 -10 ------- Run | Yrd Mat Combat Hostiles Destroyed 9 | 1 8 Guns 2 | 1 1 Cannons 4 | . 4 AOE 3 | . 3 Classes Destroyed 4 | 2 2 Worker 1 | 1 . Recycler 1 | . 1 Watcher 2 | . 2 Grunt 9 | 1 8 Best Kill Streak 3 | 1 3 Combat Bots Only 2 | 1 2 Max Kills in Single Turn 2 | 1 2 Gunslinging . | . . Exploded 2 | . 2 Melee . | . . Uniques/NPCs Destroyed . | . . Combat | -11 -10 -------- Run | Yrd Mat Hostile Shots Fired 74 | 16 58 Missed 25 | 8 17 Damage Taken 642 | 87 555 Core 260 | 34 226 Absorbed by Shields . | . . Core Remaining (%) 86 | 86 . Volleys Fired 37 | 14 23 Largest 2 | 2 2 Hottest 95 | 40 95 Shots Fired 64 | 28 36 Gun 41 | 28 13 Cannon 18 | . 18 Launcher 5 | . 5 Special . | . . Kinetic 36 | 28 8 Thermal 23 | . 23 Explosive 5 | . 5 Electromagnetic . | . . Robot Hit Streak 6 | 5 6 Robot Miss Streak 4 | 2 4 Penetration Max . | . . Secondary Targets . | . . Shots Hit Robots 38 | 17 21 Core Hits 20 | 3 17 Critical Kills . | . . Critical Parts Destroyed 1 | . 1 Critical Strikes 1 | . 1 Destroy 1 | . 1 Melee Attacks 2 | . 2 Impact 2 | . 2 Slashing . | . . Piercing . | . . Sneak Attacks . | . . Combat Hostiles . | . . Follow-up Attacks . | . . Damage Inflicted 761 | 200 561 Guns 296 | 200 96 Cannons 193 | . 193 Explosions 199 | . 199 Melee 73 | . 73 Ramming . | . . Kinetic 237 | 200 37 Thermal 252 | . 252 Explosive 199 | . 199 Electromagnetic . | . . Impact 73 | . 73 Slashing . | . . Piercing . | . . Highest Corruption . | . . Average Corruption . | . . Corruption Purged . | . . Corruption Blocked . | . . Overload Shots . | . . Overflow Damage . | . . Projectiles . | . . Explosions . | . . Melee . | . . Knockbacks 1 | . 1 Impact 1 | . 1 Kinetic . | . . Secondary . | . . Self-Inflicted Damage 39 | . 39 Shots 1 | . 1 Rammed . | . . Targets Rammed . | . . Kicked . | . . Crushed . | . . Highest Temperature 163 | 12 163 Average Temperature 50 | 7 56 Received Heat Transfer 336 | 48 288 Siege Activations . | . . Robots Corrupted . | . . Combat Hostiles . | . . Parts Fried . | . . Impact Corruptions . | . . Robots Melted . | . . Combat Hostiles . | . . Parts Melted 1 | . 1 Heat Transferred 555 | . 555 Parts Sabotaged . | . . Parts Stolen . | . . Parts Stripped . | . . Power Chain Reactions . | . . Alert | -11 -10 ------- Run | Yrd Mat Peak Influence 147 | 25 147 Initial 16 | . 16 Average 58 | 5 66 Maximum Alert Level . | . . Low Security (%) 100 | 100 100 Level 1 . | . . Level 2 . | . . Level 3 . | . . Level 4 . | . . Level 5 . | . . High Security . | . . Max Security . | . . Squads Dispatched 2 | . 2 Investigation 1 | . 1 Extermination . | . . Reinforcement 1 | . 1 Assault . | . . Garrison . | . . Intercept . | . . Searches Triggered . | . . Construction Impeded . | . . Haulers Reinforced . | . . Active Scanning Responses . | . . Cargo Convoy Interrupts . | . . Stealth | -11 -10 --------- Run | Yrd Mat Distress Signals 2 | . 2 Communications Jammed . | . . Distress Signals . | . . Times Spotted 17 | 1 16 Peak Tracking Total 4 | 1 4 Tactical Retreats 1 | . 1 Traps | -11 -10 ------- Run | Yrd Mat Traps Triggered 4 | . 4 Indirectly . | . . Trap Hack Attempts . | . . Triggered . | . . Disarmed . | . . Reprogrammed . | . . Reused . | . . Traps Extracted . | . . Installed . | . . Triggered . | . . Machines | -11 -10 ---------- Run | Yrd Mat Machines Disabled 1 | . 1 Max in Single Turn 1 | . 1 Machines Repaired . | . . Machines Dismantled . | . . Machines Sabotaged . | . . Overloaded Fab Kills . | . . Hacking | -11 -10 --------- Run | Yrd Mat Machines Accessed 1 | . 1 Terminals 1 | . 1 Fabricators . | . . Repair Stations . | . . Recycling Units . | . . Scanalyzers . | . . Garrison Access . | . . Total Hacks 5 | . 5 Successful 3 | . 3 Failed 2 | . 2 Catastrophic 1 | . 1 Database Lockouts . | . . Manual . | . . Terminals 5 | . 5 Fabricators . | . . Repair Stations . | . . Recycling Units . | . . Scanalyzers . | . . Garrison Access . | . . Terminal Hacks 3 | . 3 Dispatch Records 2 | . 2 Patrol Status 1 | . 1 Fabricator Hacks . | . . Repair Station Hacks . | . . Recycling Unit Hacks . | . . Scanalyzer . | . . Garrison Access Hacks . | . . Unauthorized Hacks . | . . Terminals . | . . Fabricators . | . . Repair Stations . | . . Recycling Units . | . . Scanalyzers . | . . Garrison Access . | . . Data Cores Recovered . | . . Used . | . . Hacking Detections 1 | . 1 Full Trace Events . | . . Feedback Events . | . . Feedback Blocked . | . . Robot Schematics Acquired . | . . Robots Built . | . . Authchips . | . . Time . | . . Total Robot Build Rating . | . . Part Schematics Acquired . | . . Parts Built . | . . Authchips . | . . Time . | . . Total Part Build Rating . | . . Parts Repaired . | . . Time . | . . Parts Recycled . | . . Recycled Matter . | . . Retrieved Matter . | . . Retrieved Components . | . . Parts Scanalyzed . | . . Part Schematics Acquired . | . . Parts Damaged . | . . Bothacking | -11 -10 ------------ Run | Yrd Mat Used RIF Installer . | . . Robots Hacked . | . . Non-combat . | . . Combat . | . . Robot Hacks Applied . | . . Relay Couplers Released . | . . Fabnet Peak Effective % . | . . Robots Rewired . | . . Allies Hacked . | . . Hacks Repelled . | . . Allies | -11 -10 -------- Run | Yrd Mat Total Allies . | . . Largest Group . | . . Highest-Rated Group . | . . Highest-Rated Ally . | . . Total Orders . | . . Ally Attacks . | . . Total Damage . | . . Kills . | . . Allies Corrupted . | . . Allies Melted . | . . Intel | -11 -10 ------- Run | Yrd Mat Robot Analysis Total . | . . Derelict Logs Recovered . | . . Drone Launches . | . . Drone Recoveries . | . . Exploration | -11 -10 ------------- Run | Yrd Mat Turns Passed 1163 | 162 1001 Spaces Moved 542 | 120 422 Core 55 | 55 . Treads . | . . Legs 487 | 65 422 Wheels . | . . Hover . | . . Flight . | . . Fastest Speed 50 | 50 120 Average Speed 167 | 87 190 Slowest Speed 260 | 120 260 Overloaded Moves . | . . Propulsion Burnouts . | . . Robots Hopped . | . . Cave-ins Triggered . | . . Exploration Rate (%) 21 | 9 34 Regions Visited 1 Branch Regions . Pre-discovered Areas . | . . Known Exits Taken . | . . Unknown Exits Taken 1 | 1 . Scrap Searched . | . . Spaces Dug . | . . Terrain Destroyed 35 | . 35 Melee . | . . Projectile . | . . AOE 35 | . 35 Terrain Rammed . | . . Walls Destroyed . | . . Machines Disabled . | . . Actions | -11 -10 --------- Run | Yrd Mat Total 733 | 154 579 Wait 97 | . 97 Move 541 | 119 422 Hop . | . . Pick Up 27 | 12 15 Fast Attach . | . . Attach 12 | 5 7 Detach . | . . Swap 8 | 1 7 Drop 9 | 3 6 Fire 37 | 14 23 Melee 2 | . 2 Ram . | . . Kick . | . . Crush . | . . Escape Stasis . | . . Rewire . | . . Trap . | . . Miscellaneous . | . . Route ------- -11/Scrapyard -10/Materials (discovered 1 exit: [*Min]) History --------- Turn | Location | Event 2 | -11/Scrapyard | Met Revision 17 105 | -11/Scrapyard | Discovered new exit (range 8) 163 | -11/Scrapyard | Entered Materials 309 | -10/Materials | Build established: Mutant 637 | -10/Materials | Core integrity fell below 50% 899 | -10/Materials | Discovered new exit (range 13) 970 | -10/Materials | Build established: Scavenger-Mutant 1158 | -10/Materials | Core integrity fell below 20% 1164 | -10/Materials | Destroyed by G-47 Trooper with Particle Gun Last Messages --------------- U-05 Engineer builds a Wall. K-01 Serf collects debris. Acquired 22 matter. EXIT=FOUND Acquired Maul. Triggered Alarm Trap. An alarm sounds. ALERT: Alarm triggered, dispatching investigation squad. Acquired 10 matter. Connecting with Terminal... >>Enumerate(Squads) Retrieving dispatch records... Found 6 active squads: 1x Surveillance 2x Patrol 2x Transport 1x Investigation G-47 Trooper knocked back. G-34 Mercenary destroyed. Map ----- +----------------------------------------------------+ | ???????????????????????????????????????????? | | ???????????????????????????????????????????? | | ????????????????????????????????#####??????? | | ???????????????????????????????##"""##?????? | | ??????????????????????????????##"|||"##????? | | ??????????????????????????????#"" ""#????? | | ??????????????????????? ###??# #????? | | ????????????????????? #?# < #????? | | ????????????????????? ?+ #????? | | ?????????????????????? #?# #????? | | ??????????? ???????? ???# #?????? | | ?????????# ????????? ????# #??????? | | ?????????# ?????????# #????# #####??? | | ?????????# ?????????# #????# [[#??? | | ?????????# ?????????# #????# [[#??? | | ?????????# ?????????# #????# //#??? | | ?????????# ? ??????## ##???# /#??? | | ????????? # ??????# ##### ]]#??? | | ????????? # ??????# ]]#??? | | ????????? # ??????+ #####??? | | ??????? """ # ?????# #??????? | | ?????"" """ # "????# =%*# ##??????? | | ????""" """ # """""?##% =## #???????? | | ????""" """ # """"" ?# ##! !#???????? | | """ """ # """""??# ###!!!!##???????? | | # """???# @ ########????????? | | * ######??##gg ###?????????????? | | #####a ##?????????????? | | # ########### ####???????????? | | ????????????# T ## #???????????? | | ????????????# o %#! #???????????? | | ????????????# ##### %=# #???????????? | | ????????????###+#####?##### # ##???????????? | | ????????????# #????# # # #????????????? | | ????????????# """ #????# # ###????????????? | | ????????????# """ #????# # ##?????????????? | | ????????????# """ #????### #######????????? | | ????????????# ! #?????# ^% #????????? | | ????????????# """[!#?????# ^ ^ #????????? | | ????????????# """! #?????# #????????? | | ????????????# """ #########+## #????????? | | ????????????# ## T # #????????? | | ????????????# """ ## # #????????? | | ????????????# """ ## # #????????? | | ????????????# """ ## # ########## | | ????????????# ## """ """ # # # | | ????????????######### """ """ # # # | | ????????????????????# """ """ # # # | | ????????????????????# # #== # | | ????????????????????########### + # | +----------------------------------------------------+ Best States ------------- Heat Dissipation 25 Energy Generation 14 Energy Capacity 250 Matter Stores 300 Matter Capacity 300 Sight Range 16 Terrain Scan Density 10 Evasion (%) 55 Item Schematics ----------------- None Robot Schematics ------------------ None Fabricated ------------ Nothing Alien Tech Used ----------------- None Achievements -------------- Uninvited Guest Challenges ------------ None Game ------ Seed SystemRestorationRay Manual? 0 Play Time 00:18:28 Cumulative 0.9 hours Start 2024.07.05 @ 01:14:30 End 2024.07.05 @ 01:32:03 Sessions 1 Manual Loads 0 Difficulty Rogue Special Mode None Game No. 2 Rogue 2 Adventurer 0 Explorer 0 Win Type - Total 0 Types 0/0/0/0/0/0/0/0/0 Lore% 0 Gallery% 2 Achievement% 1 Wizard Run 0 Options --------- Layout 1 ASCII 0 Keyboard 0 Movement Numpad Keybinds 0 Fullscreen 1 Font 24/Smallcaps Map View 50x35 Zoom Use 0% Tactical HUD 0 Map Filters NONE Filters NONE Steam 0 RUN: cd51652f-e713-43cc-aca2-363a415a2aa8